bitfinex-derivatives/quotes_ETHF0:USTF0_20241005
["timestamp","ask_amount","ask_price","bid_price","bid_amount"]
[1728129724820,1.62128939,2420.4,2420.1,4.39520947]
[1728129725015,1.62128939,2420.4,2420.3,1.7792]
[1728129726513,5.62908939,2420.5,2420.3,11.17191772]
[1728129726714,5.62908939,2420.5,2420.4,0.28919]
[1728129726918,2.42128939,2420.5,2420.4,0.28919]
[1728129727212,0.8,2420.5,2420.4,10.02923821]
[1728129729919,0.8,2420.5,2420.4,9.74004821]
[1728129730113,6.31866939,2420.5,2420.4,10.14731155]
[1728129730616,6.3211924,2420.5,2420.4,10.14731155]
[1728129731016,4.69738,2420.5,2420.4,10.14731155]
[1728129731218,6.32118759,2420.5,2420.4,10.14731155]
[1728129731419,10.16320759,2420.5,2420.4,10.14731155]
[1728129735517,10.16320759,2420.5,2420.4,10.43650155]
[1728129736507,6.95540759,2420.5,2420.4,10.43650155]
[1728129737014,10.16320759,2420.5,2420.4,10.43650155]
[1728129738217,10.16320759,2420.5,2420.4,10.14731155]
[1728129739322,10.16320759,2420.5,2420.4,10.43650155]
[1728129740219,10.16320759,2420.5,2420.4,10.14731155]
[1728129740415,10.16320759,2420.5,2420.4,10.43650155]
[1728129740611,10.16320759,2420.5,2420.4,10.14731155]
[1728129741018,10.16320759,2420.5,2420.4,10.43650155]
[1728129757026,6.03200759,2420.5,2420.4,10.43650155]
[1728129757232,4.4082,2420.5,2420.4,10.43650155]
[1728129761343,6.56991918,2420.5,2420.4,10.43650155]
[1728129764245,6.56991918,2420.5,2420.4,1.77919]
[1728129766042,6.56991918,2420.5,2420.4,2.86192666]
[1728129766443,3.36211918,2420.5,2420.4,2.86192666]
[1728129766647,3.36211918,2420.5,2420.4,1.77919]
[1728129767042,3.36211918,2420.5,2420.4,2.86192666]
[1728129769549,1.2004,2420.5,2420.4,2.86192666]
[1728129773448,1.2004,2420.5,2420.4,4.14817389]
[1728129774449,3.90254898,2420.5,2420.4,4.14817389]
[1728129774754,1.2004,2420.5,2420.4,4.14817389]
[1728129774954,1.2004,2420.5,2420.4,3.06543723]
[1728129775255,1.2004,2420.5,2420.4,4.68659269]
[1728129775448,3.90254898,2420.5,2420.4,4.14905279]
[1728129775647,3.90254898,2420.5,2420.4,3.06543723]
[1728129776652,3.90254898,2420.5,2420.4,4.68659269]
[1728129776854,3.50214898,2420.5,2420.4,4.68659269]
[1728129777254,3.50214898,2420.5,2420.4,5.16921705]
[1728129778057,0.8,2420.5,2420.4,5.16921156]
[1728129779152,3.50214898,2420.5,2420.4,5.16921156]
[1728129779350,3.50214898,2420.5,2420.4,5.16919545]
[1728129780057,3.50214898,2420.5,2420.4,4.68659269]
[1728129780746,0.8,2420.5,2420.4,4.68659269]
[1728129781259,3.50214898,2420.5,2420.4,4.68659269]
[1728129781747,3.50214898,2420.5,2420.4,4.68691405]
[1728129783260,3.50214898,2420.5,2420.4,3.06575859]
[1728129783656,3.50214898,2420.5,2420.4,4.68691405]
[1728129785762,3.50214898,2420.5,2420.4,3.06575859]
[1728129786166,3.50214898,2420.5,2420.4,4.68691405]
[1728129786661,3.50214898,2420.5,2420.4,5.16928218]
[1728129786961,0.8,2420.5,2420.4,5.16928218]
[1728129789759,2.96943023,2420.5,2420.4,5.16928218]
[1728129791457,2.96943023,2420.5,2420.4,5.16886109]
[1728129793074,2.96943023,2420.5,2420.4,5.65121707]
[1728129794366,2.56013023,2420.5,2420.4,5.65121707]
[1728129795965,2.56013023,2420.5,2420.4,6.13352907]
[1728129796266,2.56013023,2420.5,2420.4,5.65121707]
[1728129796674,2.56013023,2420.5,2420.4,5.65116627]
[1728129797173,2.56013023,2420.5,2420.4,5.16862591]
[1728129797371,3.10953023,2420.5,2420.4,5.16862591]
[1728129800867,3.10953023,2420.5,2420.4,5.16842096]
[1728129801372,3.10953023,2420.5,2420.4,4.87923096]
[1728129802873,3.10953023,2420.5,2420.4,4.39692578]
[1728129803475,3.10953023,2420.5,2420.4,4.80532578]
[1728129809379,3.10953023,2420.5,2420.4,5.28769384]
[1728129810885,3.10953023,2420.5,2420.4,5.28781491]
[1728129812981,3.10953023,2420.5,2420.4,5.57700491]
[1728129813185,3.10953023,2420.5,2420.4,5.28781491]
[1728129813389,3.10953023,2420.5,2420.4,5.28783591]
[1728129815384,3.10953023,2420.5,2420.4,5.28775272]
[1728129816580,3.10953023,2420.5,2420.4,4.80536366]
[1728129817084,3.10953023,2420.5,2420.4,5.28772845]
[1728129818183,3.10953023,2420.5,2420.4,5.28836205]
[1728129819986,3.10953023,2420.5,2420.4,4.80599726]
[1728129820387,3.10953023,2420.5,2420.4,5.2883518]
[1728129820688,3.10953023,2420.5,2420.4,3.7983518]
[1728129823991,3.10953023,2420.5,2420.4,3.31599726]
[1728129824292,3.10953023,2420.5,2420.4,3.7983587]
[1728129825184,3.10953023,2420.5,2420.4,3.79818608]
[1728129826686,3.10953023,2420.5,2420.4,3.31582464]
[1728129827088,3.10953023,2420.5,2420.4,3.79811131]
[1728129830089,3.10953023,2420.5,2420.4,3.79787765]
[1728129833097,3.10953023,2420.5,2420.4,3.79779929]
[1728129834786,3.10953023,2420.5,2420.4,3.79783556]
[1728129839594,3.10953023,2420.5,2420.4,3.31562725]
[1728129839998,3.10953023,2420.5,2420.4,3.79783833]
[1728129841703,2.71883023,2420.5,2420.4,8.21822833]
[1728129842005,2.17628378,2420.5,2420.4,21.76962464]
[1728129842705,2.17628378,2420.5,2420.4,19.12738682]
[1728129843091,1.63365712,2420.5,2420.4,21.29215515]
[1728129845204,1.63365712,2420.5,2420.4,20.80996406]
[1728129845502,0.096,2420.7,2420.6,0.28917]
[1728129845709,2.16943023,2421.1,2420.8,0.28914]
[1728129845903,2.16943023,2421.1,2421.0,2.57148026]
[1728129846206,2.45853023,2421.2,2421.0,2.57076293]
[1728129846513,2.16943023,2421.2,2421.0,2.57076293]
[1728129847210,8.38722023,2421.3,2421.0,2.57076293]
[1728129848107,8.38722023,2421.3,2421.0,1.49]
[1728129848809,6.89722023,2421.3,2421.0,1.49]
[1728129849107,4.72779,2421.3,2421.0,1.77912]
[1728129853205,4.72779,2421.3,2421.1,0.2891]
[1728129853409,4.4387,2421.3,2421.1,10.24753332]
[1728129853609,4.4387,2421.3,2421.1,1.7791]
[1728129854014,4.72778,2421.3,2421.2,0.4068]
[1728129854216,4.4387,2421.3,2421.2,0.4068]
[1728129854417,4.72778,2421.3,2421.2,0.4068]
[1728129854614,4.72778,2421.3,2421.1,1.7791]
[1728129855720,4.4387,2421.3,2421.1,1.7791]
[1728129855920,4.72779,2421.3,2421.1,1.7791]
[1728129859425,1.51999,2421.3,2421.1,1.7791]
[1728129859622,4.72779,2421.3,2421.1,1.7791]
[1728129862219,0.28909,2421.2,2421.1,1.49]
[1728129862422,4.72779,2421.3,2421.1,1.7791]
[1728129862620,0.28909,2421.2,2421.1,1.49]
[1728129862824,4.72779,2421.3,2421.1,1.77911]
[1728129863725,4.72779,2421.3,2421.2,0.4132]
[1728129873328,1.51999,2421.3,2421.2,0.4132]
[1728129873825,4.72779,2421.3,2421.2,0.4132]
[1728129877129,1.51999,2421.3,2421.2,0.4132]
[1728129877735,4.72779,2421.3,2421.2,0.4132]
[1728129879534,1.51999,2421.3,2421.2,0.4132]
[1728129879844,4.72779,2421.3,2421.2,0.4132]
[1728129880933,1.51999,2421.3,2421.2,0.4132]
[1728129881329,4.72779,2421.3,2421.2,0.4132]
[1728129881938,3.6206,2421.3,2421.2,0.4132]
[1728129882141,3.90968,2421.3,2421.2,0.4132]
[1728129882441,3.6206,2421.3,2421.1,1.49]
[1728129882643,0.28911,2421.1,2421.0,0.3951]
[1728129883041,0.28913,2420.9,2420.8,1.17676293]
[1728129883238,0.28914,2420.8,2420.7,1.08076293]
[1728129883439,0.70754,2420.8,2420.6,0.68426]
[1728129883746,0.8212,2420.7,2420.6,0.68426]
[1728129884140,0.8212,2420.7,2420.6,9.45387313]
[1728129885958,0.8212,2420.7,2420.6,10.53463606]
[1728129888743,0.8212,2420.7,2420.6,12.02463606]
[1728129889151,0.8212,2420.7,2420.6,13.31550909]
[1728129890543,5.66636023,2421.0,2420.6,13.02634909]
[1728129890748,0.4038,2420.9,2420.7,1.36991293]
[1728129890946,0.4038,2420.9,2420.8,1.49]
[1728129891148,0.4038,2420.9,2420.8,10.11311018]
[1728129894253,0.4038,2420.9,2420.8,10.40225018]
[1728129895749,3.6188,2421.0,2420.9,0.28913]
[1728129895953,0.411,2421.0,2420.9,1.77913]
[1728129896154,0.411,2421.0,2420.9,2.17863]
[1728129896452,2.86664023,2421.1,2420.9,2.17863]
[1728129896453,2.57753023,2421.1,2421.0,0.28912]
[1728129897454,0.4081,2421.1,2421.0,0.28912]
[1728129898058,0.28909,2421.2,2421.0,0.28911]
[1728129898251,0.69719,2421.2,2421.0,0.28911]
[1728129898454,0.4081,2421.2,2421.0,0.28911]
[1728129898850,0.4081,2421.2,2421.1,1.49]
[1728129899055,0.4081,2421.2,2421.1,1.77911]
[1728129903359,5.79863023,2421.3,2421.2,0.28909]
[1728129903560,3.6292,2421.3,2421.2,2.16689]
[1728129903864,3.6292,2421.3,2421.2,2.56569]
[1728129905657,5.25268209,2421.3,2421.2,2.56569]
[1728129907662,5.25268209,2421.3,2421.2,3.44277826]
[1728129909967,4.83128209,2421.3,2421.2,7.57317826]
[1728129910362,3.2078,2421.3,2421.2,7.57317826]
[1728129910570,4.83128209,2421.3,2421.2,7.28408826]
[1728129910963,4.83128209,2421.3,2421.2,3.15368826]
[1728129912173,4.83128209,2421.3,2421.2,3.44277826]
[1728129912360,4.83128209,2421.3,2421.2,3.15368826]
[1728129913161,4.83128209,2421.3,2421.2,12.08089049]
[1728129914759,3.2078,2421.3,2421.2,12.08089049]
[1728129915567,3.2078,2421.3,2421.2,10.91471223]
[1728129915763,3.49688,2421.3,2421.2,10.52691223]
[1728129915965,5.64518209,2421.3,2421.2,10.52691223]
[1728129918161,4.0217,2421.3,2421.2,10.52691223]
[1728129918670,5.64518209,2421.3,2421.2,10.52691223]
[1728129919173,4.0217,2421.3,2421.2,10.52691223]
[1728129923168,4.0217,2421.3,2421.2,10.81600223]
[1728129923475,3.6343,2421.3,2421.2,10.81600223]
[1728129924068,3.6343,2421.3,2421.2,11.23760223]
[1728129926271,3.6343,2421.3,2421.2,10.94851223]
[1728129926670,3.6343,2421.3,2421.2,11.23760223]
[1728129937471,5.25778209,2421.3,2421.2,11.23760223]
[1728129938071,5.25778209,2421.3,2421.2,12.31836516]
[1728129941479,5.25778209,2421.3,2421.2,13.61142033]
[1728129941777,5.25778209,2421.3,2421.2,13.61139887]
[1728129942182,4.83296824,2421.3,2421.2,13.61139887]
[1728129942383,4.83296824,2421.3,2421.2,12.53063594]
[1728129942879,4.83296824,2421.3,2421.2,14.15278325]
[1728129943982,1.62516824,2421.4,2421.3,0.28908]
[1728129944183,1.62516824,2421.4,2421.3,3.59560338]
[1728129944386,1.62516824,2421.4,2421.3,12.73224666]
[1728129944576,1.62516824,2421.5,2421.4,0.28907]
[1728129944886,1.62516824,2421.5,2421.4,13.20631153]
[1728129945580,1.62516824,2421.5,2421.4,13.68793733]
[1728129946382,1.62516824,2421.5,2421.4,11.91327782]
[1728129946579,1.62516824,2421.5,2421.4,13.20649186]
[1728129948177,1.62516824,2421.6,2421.5,0.28906]
[1728129948380,1.62516824,2421.6,2421.5,1.79689265]
[1728129948381,1.62459298,2421.6,2421.5,1.79689265]
[1728129948580,1.62459298,2421.6,2421.5,10.70641054]
[1728129948788,1.62459298,2421.6,2421.5,11.9993302]
[1728129949088,1.62459298,2421.6,2421.5,10.70641054]
[1728129949384,1.62458717,2421.6,2421.5,10.70641054]
[1728129949983,1.62458717,2421.6,2421.5,10.41735054]
[1728129950486,1.62458717,2421.6,2421.5,10.70641054]
[1728129951084,1.62458717,2421.6,2421.5,11.99865]
[1728129951287,1.62458717,2421.6,2421.5,11.99865561]
[1728129951490,1.62458717,2421.6,2421.5,10.70641054]
[1728129951988,1.62458717,2421.6,2421.5,11.99850077]
[1728129952183,1.62458717,2421.6,2421.5,10.70641054]
[1728129952386,1.62458717,2421.6,2421.5,10.41735054]
[1728129952685,1.62458717,2421.6,2421.5,9.99055054]
[1728129953095,2.03578717,2421.6,2421.5,9.99055054]
[1728129954285,2.03578717,2421.6,2421.5,8.90951789]
[1728129954981,2.03578717,2421.6,2421.5,9.99055054]
[1728129955185,2.03578717,2421.6,2421.5,8.90951789]
[1728129955693,1.62458717,2421.6,2421.5,8.90951789]
[1728129955997,1.62458717,2421.6,2421.5,9.99055054]
[1728129956386,1.62458717,2421.6,2421.5,8.90951789]
[1728129956693,1.62458717,2421.6,2421.5,9.19857789]
[1728129958087,1.62458717,2421.6,2421.5,10.27961054]
[1728129958294,1.62458717,2421.6,2421.5,9.19857789]
[1728129958891,1.62458717,2421.6,2421.5,8.90951789]
[1728129960594,6.32238717,2421.6,2421.5,8.90951789]
[1728129960800,6.86723023,2421.6,2421.5,8.90951789]
[1728129961199,6.86723023,2421.6,2421.4,9.20717906]
[1728129961393,2.46114048,2421.5,2421.4,0.28907]
[1728129961699,2.46114048,2421.5,2421.4,9.20717906]
[1728129964817,0.8373,2421.5,2421.4,10.69611171]
[1728129965720,1.91987143,2421.5,2421.4,10.69611171]
[1728129965916,1.9198822,2421.5,2421.4,10.69611171]
[1728129967814,1.9198822,2421.5,2421.4,11.98888684]
[1728129968009,1.9198822,2421.5,2421.4,10.69611171]
[1728129969314,1.9198822,2421.5,2421.4,11.98905306]
[1728129969912,1.5053822,2421.5,2421.4,11.98905306]
[1728129971216,1.5053822,2421.5,2421.4,12.52969842]
[1728129972316,1.5053822,2421.5,2421.4,11.98855673]
[1728129973110,1.5053822,2421.5,2421.4,10.90802041]
[1728129973820,1.5053822,2421.5,2421.4,11.98861483]
[1728129974525,1.5053822,2421.5,2421.4,11.98862734]
[1728129974916,1.5053822,2421.5,2421.4,12.52969842]
[1728129975420,1.5053822,2421.5,2421.4,11.98862874]
[1728129978026,2.04664048,2421.5,2421.4,10.40661739]
[1728129978226,2.04664048,2421.5,2421.4,9.61507906]
[1728129978429,0.4228,2421.5,2421.4,9.61507906]
[1728129979029,2.04711922,2421.5,2421.4,9.61507906]
[1728129979229,0.4228,2421.5,2421.4,9.61507906]
[1728129980419,0.4228,2421.5,2421.4,10.69568739]
[1728129981625,2.04733135,2421.5,2421.4,10.69568739]
[1728129982129,0.4228,2421.5,2421.4,10.69568739]
[1728129982732,2.04742123,2421.5,2421.4,10.69568739]
[1728129984324,2.04752975,2421.5,2421.4,10.69568739]
[1728129984518,0.4228,2421.5,2421.4,10.69568739]
[1728129985033,2.04760762,2421.5,2421.4,11.99050811]
[1728129985530,0.4228,2421.5,2421.4,11.99050811]
[1728129985729,0.4228,2421.5,2421.4,10.69568739]
[1728129986324,0.4228,2421.5,2421.4,11.9906301]
[1728129987031,0.4228,2421.5,2421.4,11.99074847]
[1728129987434,2.59223023,2421.5,2421.4,11.99074847]
[1728129988126,2.59223023,2421.5,2421.4,11.99083699]
[1728129989034,5.80003023,2421.5,2421.4,11.99083699]
[1728129989332,5.80003023,2421.5,2421.4,10.91022866]
[1728129989530,2.59223023,2421.5,2421.4,10.91022866]
[1728129989732,5.80003023,2421.5,2421.4,10.91022866]
[1728129990333,5.80003023,2421.5,2421.4,11.99201153]
[1728129991126,2.59223023,2421.5,2421.4,11.99201153]
[1728129991733,5.80003023,2421.5,2421.4,11.99201153]
[1728129992934,5.80003023,2421.5,2421.4,11.99226855]
[1728129993333,2.59223023,2421.5,2421.4,11.99226855]
[1728129993633,5.80003023,2421.5,2421.4,11.99226855]
[1728129994036,2.59223023,2421.5,2421.4,11.99226855]
[1728129994436,5.80003023,2421.5,2421.4,11.99226855]
[1728129995833,2.59223023,2421.5,2421.4,11.99226855]
[1728129996337,5.80003023,2421.5,2421.4,11.99226855]
[1728129997224,2.59223023,2421.5,2421.4,11.99226855]
[1728129997832,5.80003023,2421.5,2421.4,11.99229434]
[1728129998437,2.59223023,2421.5,2421.4,10.91051147]
[1728129998636,5.80003023,2421.5,2421.4,10.91051147]
[1728129998837,5.80003023,2421.5,2421.4,10.91053318]
[1728129999036,2.59223023,2421.5,2421.4,9.61507906]
[1728129999246,5.80003023,2421.5,2421.4,10.91053356]
[1728129999939,2.59223023,2421.5,2421.4,10.91053356]
[1728130000140,5.80003023,2421.5,2421.4,10.91053356]
[1728130000836,2.59223023,2421.5,2421.4,10.91053356]
[1728130001039,5.80003023,2421.5,2421.4,10.91053356]
[1728130001232,5.80003023,2421.5,2421.4,12.53221157]
[1728130001431,2.59223023,2421.5,2421.4,12.53221157]
[1728130001632,5.80003023,2421.5,2421.4,12.53221157]
[1728130003042,5.80003023,2421.5,2421.4,12.53277213]
[1728130006845,2.59223023,2421.5,2421.4,12.53277213]
[1728130008136,5.80003023,2421.5,2421.4,12.53277213]
[1728130009041,2.59223023,2421.5,2421.4,12.53277213]
[1728130009243,5.80003023,2421.5,2421.4,12.53277213]
[1728130009448,2.59223023,2421.5,2421.4,12.53277213]
[1728130009942,5.80003023,2421.5,2421.4,12.53277213]
[1728130010739,5.80003023,2421.5,2421.4,12.53290314]
[1728130012148,5.80003023,2421.5,2421.4,12.53263488]
[1728130012536,2.59223023,2421.5,2421.4,12.53263488]
[1728130012738,5.80003023,2421.5,2421.4,12.53263488]
[1728130017034,5.80003023,2421.5,2421.4,12.53267319]
[1728130017638,5.80003023,2421.5,2421.4,12.24360319]
[1728130017846,6.20643023,2421.5,2421.4,12.53267319]
[1728130018442,6.20643023,2421.5,2421.4,12.24360319]
[1728130019646,2.99863023,2421.5,2421.4,12.24360319]
[1728130019852,6.20643023,2421.5,2421.4,12.24360319]
[1728130020045,6.20643023,2421.5,2421.4,12.53267319]
[1728130020242,2.99863023,2421.5,2421.4,13.01449998]
[1728130020449,6.20643023,2421.5,2421.4,13.01449998]
[1728130020648,6.20643023,2421.5,2421.4,12.72542998]
[1728130021042,6.20643023,2421.5,2421.4,13.01449998]
[1728130021441,2.99863023,2421.5,2421.4,13.49633848]
[1728130021645,6.20643023,2421.5,2421.4,13.49633848]
[1728130021948,6.20643023,2421.5,2421.4,13.01449998]
[1728130023343,5.80003023,2421.5,2421.4,13.01449998]
[1728130025152,5.80003023,2421.5,2421.4,11.71858386]
[1728130025344,5.80003023,2421.5,2421.4,13.0152307]
[1728130026148,2.59223023,2421.5,2421.4,13.0152307]
[1728130026356,5.80003023,2421.5,2421.4,13.0152307]
[1728130027258,3.6306,2421.5,2421.4,13.0152307]
[1728130027447,5.79934595,2421.5,2421.4,13.0152307]
[1728130028248,3.6306,2421.5,2421.4,13.0152307]
[1728130028460,5.79935346,2421.5,2421.4,13.0152307]
[1728130029144,5.79935346,2421.5,2421.4,12.53340391]
[1728130032365,2.59155346,2421.5,2421.4,12.53340391]
[1728130032546,5.79935346,2421.5,2421.4,12.53340391]
[1728130034160,2.59155346,2421.5,2421.4,12.53340391]
[1728130034554,5.79935346,2421.5,2421.4,12.53340391]
[1728130034958,5.79935346,2421.5,2421.4,12.53360504]
[1728130036260,2.59155346,2421.5,2421.4,12.53360504]
[1728130036960,5.79935346,2421.5,2421.4,13.01567136]
[1728130037362,2.59155346,2421.5,2421.4,13.01567136]
[1728130037558,5.79935346,2421.5,2421.4,13.01567136]
[1728130037969,2.59155346,2421.5,2421.4,13.01567136]
[1728130038164,5.79935346,2421.5,2421.4,13.01567136]
[1728130038864,2.59155346,2421.5,2421.4,13.01567136]
[1728130039361,5.37655346,2421.5,2421.4,13.01567136]
[1728130039569,5.37655346,2421.5,2421.4,13.42807136]
[1728130039764,2.16875346,2421.5,2421.4,13.42807136]
[1728130040061,5.37655346,2421.5,2421.4,13.9099655]
[1728130040253,5.37655346,2421.5,2421.4,13.42789918]
[1728130040662,5.37655346,2421.5,2421.4,13.01549918]
[1728130041260,5.37655346,2421.5,2421.4,12.53343467]
[1728130041560,5.37655346,2421.5,2421.4,13.01549085]
[1728130042765,2.16875346,2421.5,2421.4,13.01549085]
[1728130042958,2.16875346,2421.5,2421.4,13.01544337]
[1728130043363,5.37655346,2421.5,2421.4,13.01544337]
[1728130044061,2.16875346,2421.5,2421.4,13.01544337]
[1728130044262,5.37655346,2421.5,2421.4,13.01544337]
[1728130044568,2.16875346,2421.5,2421.4,13.01533229]
[1728130044762,5.37655346,2421.5,2421.4,13.01533229]
[1728130045662,2.16875346,2421.5,2421.4,13.01533229]
[1728130046163,2.16875346,2421.5,2421.4,12.53332359]
[1728130047656,5.37655346,2421.5,2421.4,12.53332359]
[1728130049160,2.16875346,2421.5,2421.4,12.53332359]
[1728130049363,5.37655346,2421.5,2421.4,12.53332359]
[1728130049769,2.16875346,2421.5,2421.4,12.53332359]
[1728130050165,5.37655346,2421.5,2421.4,12.53332359]
[1728130050871,2.16875346,2421.5,2421.4,12.53332359]
[1728130051967,5.37655346,2421.5,2421.4,12.53332359]
[1728130052168,5.37655346,2421.5,2421.4,13.01540032]
[1728130053275,5.37655346,2421.5,2421.4,12.53332359]
[1728130054072,2.16875346,2421.5,2421.4,12.53332359]
[1728130054376,5.37655346,2421.5,2421.4,12.53332359]
[1728130054573,5.37655346,2421.5,2421.4,13.01538593]
[1728130057778,2.16875346,2421.5,2421.4,13.01538593]
[1728130058079,5.37655346,2421.5,2421.4,13.01538593]
[1728130058272,2.16875346,2421.5,2421.4,13.01538593]
[1728130058877,5.37655346,2421.5,2421.4,13.01538593]
[1728130059371,5.37655346,2421.5,2421.4,13.01597486]
[1728130059770,2.16875346,2421.5,2421.4,13.01597486]
[1728130059973,5.37655346,2421.5,2421.4,13.01597486]
[1728130060776,2.16875346,2421.5,2421.4,13.01597486]
[1728130061679,5.37655346,2421.5,2421.4,13.01597486]
[1728130062376,2.16875346,2421.5,2421.4,13.01597486]
[1728130062579,5.37655346,2421.5,2421.4,13.01597486]
[1728130063378,5.37655346,2421.5,2421.4,13.49805091]
[1728130063775,5.37655346,2421.5,2421.4,12.20089546]
[1728130063967,5.37655346,2421.5,2421.4,13.49802789]
[1728130064283,5.37655346,2421.5,2421.4,13.01596555]
[1728130065580,2.56675346,2421.5,2421.4,13.01596555]
[1728130065972,5.77455346,2421.5,2421.4,13.01596555]
[1728130066580,5.77455346,2421.5,2421.4,12.5338895]
[1728130067682,5.77455346,2421.5,2421.4,13.01594363]
[1728130068783,5.77455346,2421.5,2421.4,13.01590228]
[1728130069875,5.77455346,2421.5,2421.4,12.53384815]
[1728130070081,5.77455346,2421.5,2421.4,13.01590623]
[1728130070874,2.56675346,2421.5,2421.4,13.01590623]
[1728130071078,5.77455346,2421.5,2421.4,13.01590623]
[1728130071488,2.56675346,2421.5,2421.4,13.01590623]
[1728130072082,5.77455346,2421.5,2421.4,13.01590623]
[1728130073086,2.56675346,2421.5,2421.4,13.01590623]
[1728130073587,5.77455346,2421.5,2421.4,13.01590623]
[1728130074882,2.56675346,2421.5,2421.4,13.01590623]
[1728130075185,5.77455346,2421.5,2421.4,13.01590623]
[1728130075391,5.37655346,2421.5,2421.4,13.01590623]
[1728130075582,5.37655346,2421.5,2421.4,11.39422822]
[1728130078498,5.37655346,2421.5,2421.4,11.39456395]
[1728130079493,5.37655346,2421.5,2421.4,15.52416395]
[1728130081594,5.37655346,2421.5,2421.4,15.52406712]
[1728130081786,5.37655346,2421.5,2421.4,14.22664031]
[1728130081981,5.37655346,2421.5,2421.4,15.52444257]
[1728130083991,5.37655346,2421.5,2421.4,11.39484257]
[1728130084698,5.37655346,2421.5,2421.4,10.91288132]
[1728130085196,2.16875346,2421.5,2421.4,10.91288132]
[1728130085393,5.37655346,2421.5,2421.4,10.91288132]
[1728130086399,5.37655346,2421.5,2421.4,11.39469542]
[1728130086698,5.37655346,2421.5,2421.4,11.39645698]
[1728130087094,6.40895346,2421.5,2421.4,11.39645698]
[1728130087896,6.40895346,2421.5,2421.4,10.91464288]
[1728130088198,6.40895346,2421.5,2421.4,11.39643515]
[1728130088797,3.20115346,2421.5,2421.4,11.39643515]
[1728130089098,6.40895346,2421.5,2421.4,11.39643515]
[1728130091001,0.25157683,2421.5,2421.4,24.12478365]
[1728130091202,0.25157683,2421.5,2421.4,27.31004836]
[1728130091395,0.4031,2421.8,2421.7,0.28903]
[1728130091592,9.51952,2421.8,2421.7,2.37981165]
[1728130091793,0.28903,2421.7,2421.6,1.08117204]
[1728130092401,4.41863,2421.7,2421.6,1.08117204]
[1728130092898,4.48543,2421.7,2421.6,1.08117204]
[1728130093793,4.1964,2421.7,2421.6,1.08117204]
[1728130093996,4.1964,2421.7,2421.6,2.70043503]
[1728130094200,4.1964,2421.7,2421.6,3.67522876]
[1728130094799,0.0668,2421.7,2421.6,3.67522876]
[1728130095000,5.97543,2421.7,2421.6,2.41140912]
[1728130095198,4.1964,2421.7,2421.6,1.08119613]
[1728130095399,4.3197,2421.7,2421.6,1.08119613]
[1728130096104,4.3197,2421.7,2421.6,1.37024613]
[1728130097005,0.1901,2421.7,2421.6,1.37024613]
[1728130097405,0.1901,2421.7,2421.6,1.08119613]
[1728130097592,4.3197,2421.7,2421.6,1.08119613]
[1728130099103,0.47913,2421.7,2421.6,1.08119613]
[1728130099304,0.1901,2421.7,2421.6,1.37024613]
[1728130099508,0.1901,2421.7,2421.6,1.08119613]
[1728130099803,0.1901,2421.7,2421.6,1.37024613]
[1728130100903,0.1901,2421.7,2421.6,1.08119613]
[1728130101207,0.47913,2421.7,2421.6,1.08119613]
[1728130104404,0.28905,2421.6,2421.5,1.08119613]
[1728130104699,0.28906,2421.5,2421.4,1.17719613]
[1728130104905,0.28907,2421.4,2421.3,1.08119613]
[1728130105203,0.28907,2421.4,2421.2,0.38509]
[1728130105204,2.99874676,2421.4,2421.2,1.46628613]
[1728130105403,0.8168,2421.3,2421.2,1.46628613]
[1728130105705,0.8168,2421.3,2421.2,1.37028613]
[1728130105907,2.3068,2421.3,2421.2,1.37028613]
[1728130106403,2.3068,2421.3,2421.2,0.28909]
[1728130108008,5.5146,2421.3,2421.2,0.28909]
[1728130112705,5.5808,2421.3,2421.2,0.28909]
[1728130116708,4.0908,2421.3,2421.2,0.28909]
[1728130119110,4.2141,2421.3,2421.1,0.2891]
[1728130119313,0.4197,2421.2,2421.1,0.2891]
[1728130119612,0.4197,2421.2,2421.1,9.16516297]
[1728130122306,0.4197,2421.2,2421.1,9.57136297]
[1728130125104,0.4854,2421.2,2421.1,9.57136297]
[1728130125707,0.4854,2421.2,2421.1,9.28226297]
[1728130125909,0.4854,2421.2,2421.1,9.57137297]
[1728130128609,0.4854,2421.2,2421.1,9.28226297]
[1728130132623,0.77449,2421.2,2421.1,9.28226297]
[1728130133017,0.4854,2421.2,2421.1,9.28226297]
[1728130134721,0.77449,2421.2,2421.1,9.28226297]
[1728130135421,0.77449,2421.2,2421.0,1.08119613]
[1728130135422,6.1058,2421.2,2421.0,1.08119613]
[1728130135723,0.3975,2421.1,2420.9,0.80292]
[1728130135922,0.3975,2421.1,2420.9,0.70692]
[1728130137323,3.89441,2421.1,2420.9,0.70692]
[1728130138028,0.68661,2421.1,2420.9,0.70692]
[1728130138422,3.6053,2421.1,2420.9,0.70692]
[1728130138626,3.2078,2421.1,2420.9,0.70692]
[1728130140128,2.93859495,2421.2,2420.9,0.70692]
[1728130140327,0.28911,2421.1,2420.9,0.70692]
[1728130141430,3.49691,2421.1,2420.9,0.70692]
[1728130142027,0.28911,2421.1,2420.9,0.70692]
[1728130142435,3.49691,2421.1,2420.9,0.70692]
[1728130142737,3.49691,2421.1,2420.9,0.4178]
[1728130143438,0.28912,2421.0,2420.9,0.4178]
[1728130143637,3.2078,2421.1,2420.9,0.4178]
[1728130143937,3.91451,2421.1,2420.9,0.4178]
[1728130144637,3.2078,2421.0,2420.9,0.70693]
[1728130145139,0.70671,2421.1,2420.9,0.70693]
[1728130145339,3.2078,2421.0,2420.9,0.70693]
[1728130145837,3.331,2421.0,2420.9,0.70693]
[1728130146439,3.62012,2421.0,2420.9,0.4178]
[1728130146842,3.331,2421.0,2420.9,0.70693]
[1728130147241,0.1232,2421.0,2420.9,0.70693]
[1728130147444,0.1232,2421.0,2420.9,1.78812613]
[1728130147635,3.331,2421.0,2420.9,1.78812613]
[1728130147835,3.331,2421.0,2420.9,0.70693]
[1728130148036,8.9514,2421.0,2420.8,1.37019613]
[1728130148237,4.88769495,2420.9,2420.7,0.4976]
[1728130148736,5.17682495,2420.9,2420.8,8.83775534]
[1728130149336,9.30722495,2420.9,2420.8,8.83775534]
[1728130149539,0.28914,2420.8,2420.7,0.096]
[1728130149833,5.6212,2420.8,2420.5,1.80349613]
[1728130150037,3.49697,2420.6,2420.5,1.51449613]
[1728130150346,3.49697,2420.6,2420.5,10.36848394]
[1728130150645,4.98697,2420.6,2420.5,10.36848394]
[1728130151035,4.6978,2420.6,2420.5,10.36848394]
[1728130151436,4.6978,2420.6,2420.5,10.65766394]
[1728130151437,5.1056,2420.6,2420.5,10.65766394]
[1728130151646,5.1056,2420.6,2420.5,9.57646781]
[1728130152339,5.1056,2420.6,2420.5,9.28728781]
[1728130155244,5.39477,2420.6,2420.5,9.28728781]
[1728130156543,5.1056,2420.6,2420.5,9.28728781]
[1728130156946,5.5264,2420.6,2420.5,9.28728781]